bitfinex-derivatives/quotes_SOLF0:USTF0_20250803
["timestamp","ask_amount","ask_price","bid_price","bid_amount"]
[1754199050952,9.6432,160.71,160.7,3.35]
[1754199051642,3.42,160.69,160.68,3.35]
[1754199051842,116.46,160.69,160.68,3.35]
[1754199056159,113.04,160.69,160.68,5.6223479]
[1754199057259,113.04,160.69,160.68,3.35]
[1754199057457,116.46,160.69,160.68,3.35]
[1754199057852,113.04,160.69,160.68,3.35]
[1754199058661,113.04,160.69,160.68,9.5744]
[1754199059158,3.42,160.71,160.69,6.224]
[1754199059354,113.02,160.71,160.7,3.35]
[1754199059750,3.42,160.71,160.7,3.35]
[1754199060763,3.42,160.71,160.7,9.5736]
[1754199061966,2.2723479,160.77,160.72,3.33]
[1754199062161,3.22,160.76,160.75,5.6023479]
[1754199064856,3.22,160.76,160.75,3.33]
[1754199072272,421.60767932,160.8,160.74,6.2219]
[1754199072273,113.0,160.78,160.74,6.2219]
[1754199072473,3.22,160.77,160.75,3.33]
[1754199073773,3.22,160.77,160.76,3.33]
[1754199079378,9.4409,160.77,160.76,3.33]
[1754199081275,3.22,160.77,160.76,3.33]
[1754199086777,116.22,160.78,160.76,3.33]
[1754199087183,113.0,160.78,160.77,5.60043642]
[1754199087476,3.22,160.8,160.77,5.60043642]
[1754199087671,112.94,160.8,160.78,3.33]
[1754199087979,3.22,160.79,160.78,3.33]
[1754199095886,3.22,160.79,160.78,5.60043642]
[1754199096187,116.39,160.81,160.79,3.49]
[1754199096381,3.47,160.8,160.79,5.76043642]
[1754199099989,116.39,160.81,160.79,2.27043642]
[1754199100184,112.92,160.81,160.79,2.27043642]
[1754199100487,116.39,160.81,160.79,8.49053642]
[1754199100887,116.39,160.81,160.8,3.49]
[1754199106089,3.47,160.8,160.78,3.49]
[1754199106287,3.47,160.78,160.75,3.49]
[1754199106484,3.47,160.75,160.7,5.19286852]
[1754199106688,3.47,160.73,160.69,5.19286852]
[1754199106896,116.71,160.72,160.71,3.49]
[1754199107091,116.71,160.72,160.68,5.19286852]
[1754199107092,113.24,160.72,160.7,3.49]
[1754199107393,3.47,160.71,160.7,3.49]
[1754199116693,3.47,160.71,160.68,9.7143]
[1754199116899,3.47,160.71,160.68,3.49]
[1754199117597,3.47,160.71,160.69,3.49]
[1754199120506,3.47,160.7,160.68,3.49]
[1754199122602,113.2,160.69,160.68,3.49]
[1754199122803,116.56,160.69,160.68,3.49]
[1754199123003,113.2,160.69,160.67,3.41]
[1754199123202,3.36,160.68,160.67,3.41]
[1754199123502,3.36,160.68,160.65,3.41]
[1754199125207,3.36,160.68,160.65,9.6355]
[1754199125508,3.36,160.68,160.66,3.41]
[1754199125803,3.36,160.67,160.66,3.41]
[1754199126600,3.36,160.68,160.66,3.41]
[1754199127105,113.2,160.69,160.66,3.41]
[1754199127106,3.36,160.67,160.66,3.41]
[1754199127806,113.2,160.69,160.66,3.41]
[1754199128106,3.36,160.68,160.66,3.41]
[1754199129403,3.36,160.67,160.66,3.41]
[1754199130308,3.36,160.67,160.66,9.6352]
[1754199131009,3.36,160.68,160.66,6.2252]
[1754199131210,3.36,160.68,160.67,3.41]
[1754199134309,3.36,160.68,160.65,2.27333843]
[1754199134521,3.36,160.67,160.65,3.41]
[1754199137517,3.36,160.67,160.66,3.41]
[1754199153319,3.36,160.67,160.64,3.48]
[1754199153523,3.25,160.65,160.64,3.48]
[1754199155118,116.29,160.66,160.64,9.7059]
[1754199155323,116.29,160.66,160.65,3.48]
[1754199158030,116.29,160.66,160.65,9.7055]
[1754199158433,116.29,160.66,160.65,3.48]
[1754199166231,116.29,160.66,160.63,11.41906852]
[1754199166430,3.25,160.64,160.63,9.7062]
[1754199169830,3.25,160.64,160.63,3.48]
[1754199174836,3.25,160.65,160.63,3.48]
[1754199179034,3.25,160.65,160.62,7.49363993]
[1754199179235,3.25,160.65,160.64,3.48]
[1754199180538,3.25,160.65,160.63,3.48]
[1754199183933,115.31333843,160.66,160.63,3.48]
[1754199184231,3.24,160.65,160.63,3.48]
[1754199184425,115.31333843,160.66,160.63,3.48]
[1754199184628,3.24,160.64,160.63,3.48]
[1754199186936,3.24,160.65,160.63,3.48]
[1754199189531,116.28,160.65,160.63,3.48]
[1754199190736,3.24,160.64,160.63,3.48]
[1754199199834,116.26,160.64,160.63,3.48]
[1754199203731,3.24,160.67,160.61,5.2203015]
[1754199203935,3.24,160.67,160.66,3.41]
[1754199204139,113.14,160.67,160.66,3.41]
[1754199204337,113.14,160.67,160.66,9.635]
[1754199204735,3.24,160.69,160.66,9.635]
[1754199204936,116.42,160.69,160.68,3.41]
[1754199205241,3.24,160.73,160.68,3.41]
[1754199205444,3.24,160.73,160.72,5.68333843]
[1754199216646,9.4623,160.73,160.72,3.41]
[1754199217049,3.24,160.73,160.72,3.41]
[1754199220647,3.24,160.73,160.72,5.68333843]
[1754199223056,9.4623,160.73,160.72,5.68333843]
[1754199223856,3.24,160.73,160.72,5.68333843]
[1754199233174,3.24,160.73,160.72,3.41]
[1754199233371,3.24,160.73,160.72,5.68333843]
[1754199236171,113.24,160.74,160.73,3.46]
[1754199236575,3.37,160.76,160.73,3.46]
[1754199236777,116.39,160.76,160.75,3.46]
[1754199237174,122.6111,160.76,160.75,3.46]
[1754199238575,113.02,160.76,160.75,3.46]
[1754199238773,3.37,160.77,160.75,3.46]
[1754199238972,6.2201,160.79,160.76,5.73333843]
[1754199239278,113.02,160.78,160.77,3.46]
[1754199239576,116.39,160.78,160.77,3.46]
[1754199243479,116.39,160.8,160.77,3.46]
[1754199243680,113.02,160.8,160.79,2.27333843]
[1754199243884,113.02,160.8,160.79,5.75333843]
[1754199244976,116.39,160.8,160.79,5.75333843]
[1754199245581,3.37,160.79,160.76,2.27333843]
[1754199245784,3.37,160.77,160.76,2.27333843]
[1754199246481,3.37,160.77,160.76,5.75333843]
[1754199249186,116.39,160.78,160.76,5.75333843]
[1754199249379,116.39,160.78,160.77,3.48]
[1754199250185,113.02,160.78,160.77,3.48]
[1754199250685,113.02,160.8,160.77,9.7005]
[1754199250890,116.39,160.8,160.79,3.48]
[1754199251189,113.02,160.8,160.79,3.48]
[1754199251487,116.39,160.8,160.79,3.48]
[1754199252686,113.02,160.8,160.79,3.48]
[1754199253489,116.39,160.8,160.79,3.48]
[1754199254987,3.37,160.81,160.79,6.2199]
[1754199255188,3.37,160.81,160.8,2.27333843]
[1754199255489,3.37,160.81,160.8,5.75333843]
[1754199255687,3.37,160.81,160.8,11.97293843]
[1754199257495,113.0,160.82,160.81,9.6992]
[1754199257692,6.2177,160.85,160.82,3.48]
[1754199257886,3.37,160.83,160.82,5.75333843]
[1754199258792,3.37,160.83,160.82,11.97213843]
[1754199258983,3.37,160.83,160.82,5.75333843]
[1754199265291,116.35,160.84,160.82,2.27333843]
[1754199265494,116.35,160.84,160.83,5.75333843]
[1754199269496,3.37,160.84,160.83,5.75333843]
[1754199273602,3.51,160.84,160.82,3.46]
[1754199275407,3.51,160.84,160.82,5.73333843]
[1754199275607,3.51,160.84,160.82,2.27333843]
[1754199275807,3.51,160.84,160.83,3.46]
[1754199277003,9.728,160.84,160.83,3.46]
[1754199278609,3.51,160.84,160.83,3.46]
[1754199282505,3.51,160.85,160.83,3.46]
[1754199282915,119.1173,160.86,160.83,3.46]
[1754199283114,3.51,160.84,160.83,3.46]
[1754199283606,3.51,160.85,160.83,3.46]
[1754199283803,119.1173,160.86,160.83,3.46]
[1754199284013,3.51,160.84,160.83,3.46]
[1754199285402,119.1173,160.86,160.83,3.46]
[1754199285701,9.7277,160.85,160.83,3.46]
[1754199285907,6.2177,160.85,160.83,3.46]
[1754199286106,3.51,160.84,160.83,3.46]
[1754199287715,9.7277,160.85,160.83,3.46]
[1754199288318,3.51,160.85,160.83,3.46]
[1754199292405,3.51,160.85,160.84,3.46]
[1754199293016,122.6274,160.86,160.85,3.46]
[1754199295820,3.51,160.86,160.85,3.46]
[1754199296212,3.51,160.86,160.85,5.73333843]
[1754199296616,112.9,160.87,160.85,2.27333843]
[1754199296823,116.41,160.87,160.86,3.46]
[1754199299217,34.30243927,160.96,160.85,7.460447]
[1754199299423,2.27333843,160.94,160.89,2.27333843]
[1754199299726,6.2149,160.92,160.9,3.46]
[1754199299921,116.39,160.91,160.9,3.46]
[1754199300325,116.39,160.91,160.89,5.73333843]
[1754199300515,3.51,160.9,160.89,5.73333843]
[1754199301113,6.2149,160.92,160.89,5.73333843]
[1754199301320,3.51,160.91,160.9,3.46]
[1754199302118,116.36,160.92,160.9,3.46]
[1754199302322,112.9,160.94,160.91,2.27333843]
[1754199302519,3.48,160.93,160.92,3.41]
[1754199303116,3.48,160.92,160.89,5.68333843]
[1754199303322,3.48,160.93,160.9,3.41]
[1754199303626,3.48,160.93,160.89,3.41]
[1754199304021,6.215,160.92,160.89,3.41]
[1754199304222,3.48,160.91,160.89,3.41]
[1754199305522,3.48,160.91,160.9,3.41]
[1754199306523,3.48,160.91,160.9,5.68333843]
[1754199306926,3.48,160.93,160.91,3.41]
[1754199307227,3.48,160.93,160.92,5.68333843]
[1754199308722,17.42635929,161.12,160.87,8.59710857]
[1754199308723,3.48,160.99,160.87,8.59710857]
[1754199308924,3.48,160.97,160.88,3.41]
[1754199309317,3.48,160.97,160.89,3.41]
[1754199309517,3.54038223,160.96,160.89,3.41]
[1754199309716,3.48,160.95,160.89,3.41]
[1754199309929,113.32,160.94,160.89,3.41]
[1754199310130,3.48,160.93,160.89,3.41]
[1754199310427,3.48,160.92,160.89,3.41]
[1754199311629,7.02038223,160.99,160.9,3.41]
[1754199311829,3.48,160.95,160.9,3.41]
[1754199313326,3.48,160.92,160.9,3.41]
[1754199313526,3.48,160.91,160.9,3.41]
[1754199313925,3.48,160.91,160.89,3.41]
[1754199314525,9.6954,160.91,160.9,3.41]
[1754199318426,3.48,160.91,160.9,3.41]
[1754199319329,9.6953,160.91,160.9,3.41]
[1754199323136,441.21198412,161.0,160.85,5.18710857]
[1754199323137,3.48,160.99,160.89,9.626]
[1754199323337,116.78038223,160.98,160.89,3.41]
[1754199323539,3.48,160.97,160.89,3.41]
[1754199324132,116.78038223,160.98,160.89,3.41]
[1754199324442,3.48,160.95,160.89,3.41]
[1754199324640,6.2153,160.92,160.89,3.41]
[1754199324839,3.48,160.91,160.89,3.41]
[1754199325438,418.98160189,161.0,160.89,3.41]
[1754199325646,3.48,160.94,160.88,3.41]
[1754199326139,3.48,160.92,160.85,3.41]
[1754199326442,117.00038223,160.93,160.85,3.41]
[1754199326443,3.48,160.9,160.85,3.41]
[1754199327441,6.2168,160.88,160.85,3.41]
[1754199327639,3.48,160.87,160.85,3.41]
[1754199329439,3.48,160.86,160.83,6.2181]
[1754199329635,3.48,160.88,160.83,3.41]
[1754199330538,6.218,160.85,160.83,3.41]
[1754199330746,3.48,160.84,160.83,3.41]
[1754199333540,9.698,160.84,160.83,3.41]
[1754199333943,9.698,160.84,160.76,115.39864811]
[1754199333944,3.43,160.83,160.81,3.52]
[1754199334243,9.6485,160.83,160.81,3.52]
[1754199334445,3.43,160.82,160.78,9.76068223]
[1754199334846,3.43,160.81,160.79,3.52]
[1754199343845,6.2192,160.81,160.79,3.52]
[1754199344051,3.43,160.8,160.79,3.52]
[1754199344753,3.43,160.8,160.79,5.78927893]
[1754199345851,3.43,160.8,160.79,3.52]
[1754199346056,3.43,160.8,160.76,108.37193373]
[1754199346057,3.43,160.79,160.76,111.89193373]
[1754199346251,3.43,160.79,160.77,3.52]
[1754199346647,6.2204,160.78,160.77,3.52]
[1754199346855,9.6504,160.78,160.77,3.52]
[1754199347249,9.6509,160.77,160.76,3.52]
[1754199348045,3.43,160.77,160.76,3.52]
[1754199353855,3.43,160.78,160.76,3.52]
[1754199354361,3.43,160.77,160.76,3.52]
[1754199360365,3.43,160.78,160.76,3.52]
[1754199360568,3.43,160.79,160.76,3.52]
[1754199360765,3.43,160.79,160.77,6.2207]
[1754199360955,3.43,160.79,160.78,3.52]
[1754199361161,3.43,160.83,160.78,3.52]
[1754199362061,3.22,160.82,160.78,3.52]
[1754199362260,3.22,160.82,160.78,7.06800653]
[1754199362465,3.22,160.82,160.79,3.34]
[1754199363269,3.22,160.82,160.8,6.2195]
[1754199363465,3.22,160.84,160.81,3.34]
[1754199364663,3.22,160.84,160.83,9.5584]
[1754199365869,3.22,160.84,160.83,3.34]
[1754199375175,3.22,160.86,160.83,9.5583]
[1754199375371,3.22,160.86,160.84,3.34]
[1754199375575,3.22,160.85,160.84,3.34]
[1754199376877,3.22,160.85,160.84,5.60776181]
[1754199377777,6.2169,160.87,160.84,5.60776181]
[1754199377778,3.22,160.86,160.84,5.60776181]
[1754199377977,3.22,160.86,160.85,3.34]
[1754199383074,9.4373,160.86,160.84,5.60776181]
[1754199383271,3.22,160.85,160.84,5.60776181]
[1754199385281,9.4376,160.85,160.84,2.26776181]
[1754199385482,3.22,160.85,160.84,2.26776181]
[1754199386183,3.22,160.85,160.84,5.60776181]
[1754199388079,9.4376,160.85,160.84,5.60776181]
[1754199390481,3.22,160.85,160.84,5.60776181]
[1754199390691,3.22,160.9,160.85,3.34]
[1754199390984,3.22,160.9,160.89,2.26776181]
[1754199391376,3.22,160.9,160.89,5.60776181]
[1754199392782,3.22,160.9,160.89,3.34]
[1754199392981,113.24,160.91,160.89,6.88135595]
[1754199393177,3.26,160.97,160.9,3.35]
[1754199393384,3.26,160.96,160.92,3.35]
[1754199393978,3.26,160.95,160.93,3.35]
[1754199394980,3.26,160.95,160.93,6.89135595]
[1754199395182,3.26,160.95,160.94,3.35]
[1754199395576,3.26,160.96,160.94,3.35]
[1754199396784,9.4734,160.96,160.95,3.35]
[1754199398184,3.26,160.95,160.94,3.35]
[1754199398784,3.26,160.94,160.92,3.35]
[1754199399184,3.26,160.94,160.86,5.17614]
[1754199399486,113.36,160.97,160.9,3.54135595]
[1754199399680,3.26,160.93,160.9,3.54135595]
[1754199399884,6.2142,160.94,160.91,3.35]
[1754199400082,3.26,160.92,160.91,3.35]
[1754199401993,3.26,160.92,160.88,6.2164]
[1754199402293,3.26,160.92,160.87,3.35]
[1754199402992,6.2157,160.91,160.87,3.35]
[1754199403186,3.26,160.9,160.87,3.35]
[1754199403987,3.26,160.9,160.88,3.35]
[1754199405186,3.26,160.9,160.89,3.35]
[1754199407393,6.215,160.92,160.89,3.35]
[1754199407594,3.26,160.91,160.89,3.35]
[1754199407999,116.58,160.93,160.89,3.35]
[1754199409198,116.58,160.93,160.89,9.5658]
[1754199409594,113.32,160.97,160.91,3.35]
[1754199409796,3.26,160.96,160.91,3.35]
[1754199411300,3.26,160.95,160.92,3.35]
[1754199411697,3.26,160.94,160.92,3.35]
[1754199412804,3.26,160.93,160.9,3.35]
[1754199413101,3.26,160.93,160.87,6.89135595]
[1754199413299,3.26,160.93,160.89,3.35]
[1754199413496,3.26,160.91,160.89,3.35]
[1754199413701,3.26,160.95,160.86,6.2172]
[1754199413911,3.26,160.93,160.87,3.35]
[1754199414208,3.26,160.9,160.87,3.35]
[1754199414708,6.2157,160.91,160.87,3.35]
[1754199414904,3.26,160.89,160.87,3.35]
[1754199418913,3.26,160.88,160.87,3.35]
[1754199421015,3.26,160.88,160.86,3.35]
[1754199421316,3.26,160.87,160.86,3.35]
[1754199423510,116.96135595,160.92,160.86,3.35]
[1754199423511,113.42,160.92,160.86,3.35]
[1754199423919,3.42,160.88,160.86,3.35]
[1754199424115,3.42,160.87,160.86,3.35]
[1754199434229,3.42,160.91,160.83,9.75975595]
[1754199434527,3.54135595,160.9,160.84,3.53]
[1754199434724,3.42,160.89,160.84,3.53]
[1754199435423,3.42,160.89,160.85,3.53]
[1754199436229,6.2171,160.87,160.85,3.53]
[1754199436528,3.42,160.86,160.85,3.53]
[1754199436917,6.2172,160.86,160.83,3.53]
[1754199437228,3.42,160.84,160.83,3.53]
[1754199446734,3.42,160.84,160.83,5.79805232]
[1754199450839,6.2172,160.86,160.83,2.26805232]
[1754199451032,3.42,160.84,160.83,2.26805232]
[1754199451440,3.42,160.82,160.81,3.53]
[1754199468050,3.48,160.81,160.78,3.28]
[1754199468555,3.48,160.81,160.75,8.72131377]
[1754199468556,9.6995,160.81,160.77,3.28]
[1754199468750,3.48,160.8,160.77,3.28]
[1754199469043,3.48,160.8,160.75,3.28]
[1754199470446,3.48,160.78,160.76,3.28]
[1754199471242,3.48,160.77,160.73,5.17614]
[1754199471448,3.48,160.77,160.74,3.28]
[1754199472143,3.48,160.76,160.74,3.28]
[1754199472346,3.48,160.76,160.73,3.28]
[1754199472554,9.7014,160.76,160.73,3.28]
[1754199472758,3.48,160.75,160.73,3.28]
[1754199474355,3.48,160.74,160.72,9.5026]
[1754199474559,3.48,160.74,160.73,3.28]
[1754199478054,3.48,160.74,160.71,2.27125087]
[1754199478259,3.48,160.74,160.71,5.55125087]
[1754199478757,3.48,160.73,160.71,3.28]
[1754199480357,3.48,160.73,160.72,3.28]
[1754199483257,9.7023,160.73,160.71,3.39]
[1754199483563,3.37,160.72,160.71,3.39]
[1754199484761,3.37,160.72,160.71,9.613]
[1754199485162,3.37,160.74,160.66,3.39]
[1754199485363,6.2226,160.73,160.69,3.39]
[1754199485570,3.37,160.72,160.69,3.39]
[1754199486267,3.37,160.7,160.67,5.66125087]
[1754199486467,3.37,160.69,160.67,3.39]
[1754199487063,3.37,160.69,160.65,8.49655087]
[1754199487369,3.37,160.81,160.68,3.39]
[1754199487568,2.27125087,160.74,160.7,3.39]
[1754199487768,3.37,160.73,160.7,3.39]
[1754199487970,3.37,160.73,160.71,3.39]
[1754199488766,3.55040609,160.75,160.71,3.39]
[1754199488972,3.37,160.74,160.71,3.39]
[1754199489367,3.37,160.76,160.72,3.39]
[1754199489778,3.37,160.78,160.75,3.39]
[1754199491877,3.37,160.77,160.76,3.39]
[1754199497678,117.17040609,160.83,160.76,3.39]
[1754199497878,3.37,160.82,160.76,3.39]
[1754199498176,3.37,160.82,160.76,6.94040609]
[1754199498379,3.37,160.82,160.77,3.39]
[1754199499073,531.68,160.84,160.77,3.39]
[1754199499275,3.37,160.8,160.77,3.39]
[1754199499776,3.37,160.8,160.74,3.39]
[1754199500381,6.2209,160.77,160.74,3.39]
[1754199500578,3.37,160.76,160.75,3.39]
[1754199500780,3.37,160.76,160.74,3.39]
[1754199501377,3.37,160.75,160.71,3.55040609]
[1754199501579,3.37,160.75,160.7,6.2233]
[1754199501580,3.37,160.75,160.72,3.39]
[1754199501774,3.37,160.75,160.73,3.39]
[1754199501975,3.37,160.75,160.7,3.39]
[1754199503280,6.2222,160.74,160.7,3.39]
[1754199503480,3.37,160.72,160.7,3.39]
[1754199503890,3.37,160.72,160.69,6.2238]
[1754199504083,3.37,160.72,160.7,9.6134]
[1754199504285,3.37,160.73,160.71,3.39]
[1754199506491,9.5919,160.74,160.71,3.39]
[1754199506691,3.37,160.74,160.72,3.39]
[1754199506892,3.37,160.76,160.72,3.39]
[1754199507195,3.37,160.75,160.72,3.39]
[1754199507597,3.37,160.75,160.73,3.39]
[1754199510299,3.37,160.75,160.74,3.39]
[1754199510599,3.37,160.76,160.74,3.39]
[1754199510899,6.2211,160.76,160.74,3.39]
[1754199511097,3.37,160.75,160.74,3.39]
[1754199516699,6.2208,160.77,160.73,6.2221]
[1754199516892,3.27,160.76,160.74,3.43]
[1754199519703,3.27,160.75,160.74,3.43]
[1754199522102,3.55040609,160.75,160.71,3.43]
[1754199522499,3.55040609,160.75,160.69,8.60614]
[1754199522704,3.55040609,160.73,160.68,5.17614]
[1754199523094,3.27,160.71,160.67,3.43]
[1754199523295,3.55040609,160.71,160.66,5.17614]
[1754199523602,3.27,160.67,160.64,5.17614]
[1754199523803,3.27,160.67,160.63,8.60614]
[1754199524203,3.27,160.67,160.63,3.43]
[1754199524400,6.2246,160.67,160.61,5.17614]
[1754199524707,6.2246,160.67,160.64,3.43]
[1754199524708,3.27,160.66,160.64,3.43]
[1754199524904,3.27,160.66,160.65,3.43]
[1754199525302,3.27,160.66,160.61,3.43]
[1754199525700,3.27,160.65,160.6,3.43]
[1754199526095,3.27,160.65,160.59,8.60614]
[1754199526295,3.27,160.61,160.59,3.43]
[1754199527306,3.27,160.61,160.58,3.43]
[1754199527509,3.27,160.61,160.57,3.43]
[1754199527706,3.27,160.61,160.58,3.43]
[1754199528103,3.27,160.61,160.59,3.43]
[1754199528408,3.27,160.61,160.57,3.43]
[1754199528911,3.27,160.61,160.58,3.43]
[1754199529308,3.27,160.61,160.59,3.43]
[1754199529907,3.27,160.6,160.59,3.43]
[1754199532711,3.27,160.62,160.6,3.43]
[1754199533715,114.16,160.66,160.62,3.43]
[1754199533909,117.71040609,160.66,160.62,3.43]
[1754199534310,3.27,160.65,160.62,3.43]
[1754199534614,3.27,160.64,160.62,3.43]
[1754199535510,3.27,160.63,160.62,3.43]
[1754199538617,3.27,160.63,160.61,3.43]
[1754199540518,3.27,160.62,160.59,3.43]
[1754199545522,3.21,160.61,160.59,3.43]
[1754199550823,9.4366,160.62,160.59,3.43]
[1754199551029,3.21,160.61,160.59,3.43]
[1754199551730,6.2262,160.63,160.59,3.43]
[1754199552221,3.21,160.62,160.59,3.43]
[1754199552925,3.21,160.61,160.59,3.43]
[1754199561434,6.2262,160.63,160.59,3.43]
[1754199561629,6.2259,160.64,160.59,3.43]
[1754199561833,3.21,160.65,160.6,3.55040609]
[1754199562028,3.21,160.65,160.61,3.44]
[1754199562431,3.21,160.64,160.62,3.44]
[1754199567927,114.12,160.66,160.6,8.73391155]
[1754199568126,114.12,160.66,160.63,3.44]
[1754199568330,3.21,160.67,160.63,3.44]
[1754199568839,120.2037,160.7,160.63,3.44]
[1754199569039,3.21,160.68,160.64,3.55040609]
[1754199569239,3.21,160.68,160.65,3.44]
[1754199569437,3.21,160.68,160.66,3.44]
[1754199569635,3.21,160.68,160.67,3.44]
[1754199571738,3.21,160.68,160.65,3.18]
[1754199573334,3.21,160.68,160.66,3.18]
[1754199573534,3.21,160.68,160.63,3.55040609]
[1754199573535,9.4342,160.68,160.63,6.226]
[1754199573740,3.35,160.67,160.64,3.18]
[1754199574844,3.35,160.69,160.63,9.406]
[1754199575035,3.35,160.69,160.65,3.18]
[1754199576338,3.35,160.67,160.65,3.18]
[1754199577745,3.35,160.67,160.63,6.226]
[1754199577946,3.35,160.67,160.66,3.18]
[1754199580243,3.35,160.67,160.65,3.18]
[1754199581251,3.35,160.66,160.65,3.18]
[1754199582339,6.2251,160.66,160.63,3.18]
[1754199582545,3.35,160.65,160.63,3.18]
[1754199583449,3.35,160.65,160.64,3.18]
[1754199583745,3.35,160.63,160.57,5.18350546]
[1754199583944,3.35,160.63,160.57,3.18]
[1754199584344,3.35,160.6,160.57,3.18]
[1754199584644,3.35,160.6,160.58,3.18]
[1754199585545,3.35,160.59,160.55,3.18]
[1754199585746,3.35,160.59,160.53,5.18350546]
[1754199585945,3.35,160.59,160.56,3.18]
[1754199587351,3.35,160.58,160.56,3.18]
[1754199587546,3.35,160.58,160.53,3.18]
[1754199587749,3.35,160.57,160.52,3.18]
[1754199589249,9.5785,160.57,160.52,9.4103]
[1754199589455,117.53040609,160.6,160.53,3.18]
[1754199589657,3.35,160.58,160.53,3.18]
[1754199590850,6.2277,160.59,160.54,6.2293]
[1754199591049,3.35,160.58,160.55,3.18]
[1754199591749,3.35,160.58,160.56,3.18]
[1754199592951,3.35,160.58,160.49,7.02671438]
[1754199592952,3.35,160.59,160.55,3.18]
[1754199593149,6.2281,160.58,160.53,6.23]
[1754199593453,6.2281,160.58,160.54,3.18]
[1754199593454,3.35,160.57,160.54,3.18]
[1754199594161,9.5786,160.57,160.52,3.18]
[1754199594350,3.35,160.56,160.51,6.2304]
[1754199594553,3.35,160.54,160.52,3.18]
[1754199594851,3.35,160.54,160.48,5.18350546]
[1754199594852,3.35,160.53,160.51,3.18]
[1754199595046,3.35,160.53,160.48,6.2319]
[1754199595248,3.35,160.53,160.47,3.18]
[1754199596161,3.35,160.51,160.47,3.18]
[1754199596358,3.35,160.5,160.47,3.18]
[1754199597060,3.35,160.49,160.44,3.18]
[1754199597454,3.35,160.48,160.42,3.18]
[1754199597655,3.55040609,160.48,160.42,3.18]
[1754199597852,3.35,160.47,160.42,3.18]
[1754199598356,3.55040609,160.48,160.42,3.18]
[1754199598357,3.35,160.46,160.42,3.18]
[1754199599150,3.35,160.46,160.43,6.2339]
[1754199599359,120.3516,160.49,160.44,3.18]
[1754199599556,120.3516,160.49,160.41,204.22737033]
[1754199599557,3.35,160.48,160.42,3.18]
[1754199599855,3.35,160.48,160.42,9.4142]
[1754199599856,3.35,160.47,160.42,9.4142]